[Event "44th Chess Olympiad Women 2022"]
[Site "Chennai"]
[Date "2022.07.29"]
[Round "1.16"]
[White "Sahithi Varshini M"]
[Black "Li, Joy Ching"]
[Result "1-0"]
[ECO "B23"]
[WhiteElo "2312"]
[BlackElo "1386"]
[Annotator "TA"]
[PlyCount "73"]
[EventDate "2022.07.29"]
[EventType "team-tourn"]
[EventCountry "IND"]
[SourceTitle "playchess.com"]
[Source "ChessBase"]
[SourceQuality "1"]
[WhiteTeam "India"]
[BlackTeam "Hong Kong"]
[WhiteTeamCountry "IND"]
[BlackTeamCountry "HKG"]
[TimeControl "40/5400+30:1800+30"]

{[%evp 9,72,-10,12,0,0,0,0,0,0,-7,22,-20,0,0,8,20,22,-33,-22,-33,-33,-33,-33,-33,-33,-47,-29,-30,-12,-29,0,-15,85,73,76,0,0,5,11,0,16,28,30,-36,0,0,169,-43,29976,29977,29960,29960,5897,3144,29986,29987,29987,29988,29993,29994,29994,29995,29995,29996,29999]} 1. e4 {[%emt 0:00:27]} c5 {[%emt 0:00:08]} 2. Nc3 {[%emt 0:01:08]} g6 {[%emt 0:00:22]} 3. f4 {[%emt 0:02:09]} Bg7 {[%emt 0:01:12]} 4. Nf3 {[%emt 0:00:09]} d6 {[%emt 0:04:34]} 5. Bc4 {[%emt 0:00:09]} Nf6 {[%emt 0:06:14]} 6. O-O {[%emt 0:06:35] B23: Closed Sicilian: Lines without g3.} O-O {[%emt 0:11:21][%cal Of6e4]} 7. d3 {[%emt 0:06:51]} a6 {[%emt 0:08:38]} 8. a4 {[%emt 0:06:32] The position is equal.} e6 {[%emt 0:11:06]} 9. e5 {[%emt 0:13:59]} dxe5 {[%emt 0:05:42]} 10. Nxe5 {[%emt 0:11:44] [#]} Nd5 $146 {[%emt 0:04:37]} ({Predecessor:} 10... Nbd7 11. Nf3 Nb6 12. Bb3 Qc7 13. Qe1 Nbd5 14. Ne5 Nxc3 15. Qxc3 Nd5 16. Qe1 b6 {0-1 (54) Turcan,M (2210)-Ridarcikova,V Sala 1994}) 11. Ne4 {[%emt 0:07:55]} Qc7 {[%emt 0:05:41]} 12. Qe1 {[%emt 0:03:08]} Nd7 {[%emt 0:05:58]} 13. Nxd7 {[%emt 0:00:27]} (13. a5 $11) 13... Bxd7 $15 {[%emt 0:01:10]} 14. a5 {[%emt 0:13:14][%cal Of4f5]} (14. Qh4 {feels hotter.} b5 15. Bxd5 exd5 16. Nf6+) 14... Bb5 {[%emt 0:05:14]} 15. c3 {[%emt 0:01:29]} Bxc4 {[%emt 0:04:25]} 16. dxc4 {[%emt 0:00:06]} Nf6 {[%emt 0:01:03]} 17. Ng5 {[%emt 0:05:10]} h6 {[%emt 0:03:21]} 18. Nf3 {[%emt 0:00:08]} Nd7 {[%emt 0:03:23]} 19. Qh4 {[%emt 0:00:54]} Kh7 {[%emt 0:02:04]} 20. Be3 {[%emt 0:02:19]} e5 {[%emt 0:01:43]} (20... Nf6 $11 {remains equal.}) 21. fxe5 {[%emt 0:04:19] White is more active.} Nxe5 {[%emt 0:00:43]} 22. Ng5+ {[%emt 0:01:36]} (22. Nxe5 $16 Qxe5 23. Qf2) 22... Kg8 $11 {[%emt 0:00:48]} 23. Ne4 {[%emt 0:00:10][%csl LRc5,LRh6] And now Nf6+ would win.} g5 {[%emt 0:07:02] [#]} 24. Bxg5 {[%emt 0:02:58] Nf6+ is the strong threat.} hxg5 {[%emt 0:00:58]} (24... f5 25. Nf6+) 25. Nxg5 {[%emt 0:00:11][%csl Gg5][%cal Rh4h7]} Rfe8 {[%emt 0:00:37]} 26. Qh7+ {[%emt 0:00:05]} Kf8 {[%emt 0:00:07]} 27. Rae1 {[%emt 0:00:06] aiming for Re3.} Re7 $2 {[%emt 0:01:37] [#]} (27... Ng4 $11) 28. h4 $2 {[%emt 0:01:25]} (28. Re3 $1 $18 {[%cal Re3g3] Strongly threatening Rg3.} Rd8 29. Rg3) 28... Ng4 $2 {[%emt 0:01:33][%mdl 8192] [#] Black cannot hold the game after this.} (28... Rd8 $15 29. Re3 Rd6) 29. Rxf7+ $1 {[%emt 0:00:21][%mdl 576] Remove Defender, Deflection} Rxf7 {[%emt 0:02:06]} 30. Ne6+ {[%emt 0:00:05]} Ke7 {[%emt 0:00:19]} 31. Nxc7+ {[%emt 0:00:16][%mdl 64] Discovered Attack} Kd7 {[%emt 0:00:19]} 32. Qg6 {[%emt 0:00:51] White mates.} Raf8 {[%emt 0:01:14]} 33. Ne6 {[%emt 0:00:24]} Re7 {[%emt 0:00:50]} 34. Nxc5+ {[%emt 0:01:20]} Kd8 {[%emt 0:00:36]} 35. Qd6+ {[%emt 0:00:09]} Kc8 {[%emt 0:00:11]} 36. Rxe7 {[%emt 0:00:25][%csl Ge7][%cal Rd6c7]} Rd8 {[%emt 0:00:09]} 37. Qc7# {[%emt 0:00:07] Weighted Error Value: White=0.25 (precise) /Black=0.63} 1-0

[Event "44th Chess Olympiad Women 2022"]
[Site "Chennai"]
[Date "2022.07.29"]
[Round "1.16"]
[White "Deng, Jing Xin Crystal"]
[Black "Nandhidhaa, P V"]
[Result "0-1"]
[ECO "A41"]
[WhiteElo "1914"]
[BlackElo "2312"]
[Annotator "TA"]
[PlyCount "58"]
[EventDate "2022.07.29"]
[EventType "team-tourn"]
[EventCountry "IND"]
[SourceTitle "playchess.com"]
[Source "ChessBase"]
[SourceQuality "1"]
[WhiteTeam "Hong Kong"]
[BlackTeam "India"]
[WhiteTeamCountry "HKG"]
[BlackTeamCountry "IND"]
[TimeControl "40/5400+30:1800+30"]

{[%evp 9,58,-16,-14,-17,-15,-35,-26,-70,-66,-61,-55,-87,-69,-108,-83,-79,-57,-50,-17,-17,-12,-56,-45,-52,-54,-57,-50,-56,-39,-74,-56,-60,-77,-69,-50,-145,-114,-156,-147,-289,-294,-280,-267,-255,-259,-1577,-1364,-29994,-29995,-29995,-29995]} 1. d4 {[%emt 0:00:04]} d6 {[%emt 0:00:23]} 2. c4 {[%emt 0:00:35]} e5 {[%emt 0:00:18]} 3. d5 {[%emt 0:01:20]} f5 {[%emt 0:05:05]} 4. Nc3 {[%emt 0:02:30]} Nf6 {[%emt 0:00:09]} 5. g3 {[%emt 0:07:45]} Be7 {[%emt 0:04:27]} 6. Bg2 {[%emt 0:02:45] A41: 1 d4 d6: Tartakower System and Modern Defence.} a5 {[%emt 0:02:01] [#]} 7. a3 $146 {[%emt 0:06:48]} ({Predecessor:} 7. Nf3 Na6 8. O-O O-O 9. a3 Nc5 10. Be3 Nce4 11. Nxe4 Nxe4 12. Ne1 Bg5 13. Bxg5 Qxg5 {0-1 (58) Salimova,N (2364)-Moroni,L (2575) Cap d'Agde 2021}) 7... O-O {[%emt 0:03:39]} 8. Bg5 {[%emt 0:16:02] Black has an edge.} Nbd7 {[%emt 0:05:25][%cal Bb8d7,Bd7c5,Bc5b3][%mdl 32]} 9. Nf3 {[%emt 0:06:16]} Nc5 {[%emt 0:16:12]} 10. O-O {[%emt 0:06:07]} a4 {[%emt 0:04:18]} 11. Be3 {[%emt 0:03:27] [#]} Nb3 {[%emt 0:08:10]} 12. Rb1 {[%emt 0:00:18][%cal Oc3a4]} Bd7 {[%emt 0:02:40]} 13. Nd2 {[%emt 0:02:56]} Nxd2 {[%emt 0:01:08]} 14. Bxd2 {[%emt 0:03:31]} Qe8 {[%emt 0:06:08]} 15. b4 {[%emt 0:09:58]} axb3 {[%emt 0:01:11]} 16. Qxb3 {[%emt 0:00:24]} b6 {[%emt 0:06:47]} 17. Nb5 {[%emt 0:03:24]} Bd8 {[%emt 0:04:00]} 18. Ra1 {[%emt 0:03:48]} Qh5 {[%emt 0:02:54]} (18... Ne4 $5 {[%cal Re4d2]} 19. Be3 Qh5 $15) 19. Bf3 {[%emt 0:07:56]} Ng4 {[%emt 0:02:27]} 20. Bxg4 {[%emt 0:00:03]} Qxg4 {[%emt 0:01:08]} 21. f3 {[%emt 0:06:25]} Qg6 {[%emt 0:00:16]} 22. a4 {[%emt 0:02:53]} (22. Kh1 $15) 22... f4 $17 {[%emt 0:02:08]} 23. Kg2 {[%emt 0:02:34]} e4 {[%emt 0:04:17] White must now prevent ...fxg3.} 24. Rh1 {[%emt 0:03:26]} (24. Be1 $17 {was called for.}) 24... exf3+ {[%emt 0:03:03]} 25. exf3 {[%emt 0:00:34]} Bh4 {[%emt 0:01:43]} 26. Be1 {[%emt 0:01:00]} Rae8 {[%emt 0:01:18] ( -> ...Re2+)} 27. Bf2 $2 {[%emt 0:00:30]} (27. Qd1) 27... fxg3 {[%emt 0:01:25]} 28. Bxg3 {[%emt 0:00:37]} Re2+ {[%emt 0:02:32]} 29. Kf1 {[%emt 0:00:01] [#]} Rfe8 $1 {[%emt 0:00:34] Weighted Error Value: White=0.79/Black=0.19 (very precise)} 0-1

[Event "44th Chess Olympiad Women 2022"]
[Site "Chennai"]
[Date "2022.07.29"]
[Round "1.16"]
[White "Lam, Ka Yan"]
[Black "Pratyusha, Bodda"]
[Result "0-1"]
[ECO "B13"]
[WhiteElo "1223"]
[BlackElo "2310"]
[Annotator "TA"]
[PlyCount "64"]
[EventDate "2022.07.29"]
[EventType "team-tourn"]
[EventCountry "IND"]
[SourceTitle "playchess.com"]
[Source "ChessBase"]
[SourceQuality "1"]
[WhiteTeam "Hong Kong"]
[BlackTeam "India"]
[WhiteTeamCountry "HKG"]
[BlackTeamCountry "IND"]
[TimeControl "40/5400+30:1800+30"]

{[%evp 11,64,-10,0,-19,-19,-14,0,-15,6,11,19,3,12,-40,-55,-59,-61,-102,-99,-99,-105,-142,-138,-202,-202,-266,-266,-268,-268,-270,-263,-263,-260,-261,-267,-258,-260,-298,-292,-292,-286,-338,-329,-540,-527,-782,-772,-761,-721,-1131,-1082,-29969,-29965,-29976,-29977]} 1. e4 {[%emt 0:00:12]} c6 {[%emt 0:00:56]} 2. d4 {[%emt 0:03:01]} d5 {[%emt 0:00:08]} 3. exd5 {[%emt 0:02:55]} cxd5 {[%emt 0:00:05]} 4. Nc3 {[%emt 0:01:12]} Nc6 {[%emt 0:01:26]} 5. Nf3 {[%emt 0:01:25]} Nf6 {[%emt 0:00:19]} 6. Bb5 {[%emt 0:04:26]} Bg4 {[%emt 0:00:56]} 7. Qd3 {[%emt 0:08:04] B13: Caro-Kann: Exchange Variation and Panov-Botvinnik Attack.} Bxf3 {[%emt 0:04:10]} 8. Qxf3 {[%emt 0:01:21]} e6 {[%emt 0:00:36]} 9. O-O {[%emt 0:03:39] The position is equal.} a6 {[%emt 0:07:33]} (9... Bd6 {with more complications.} 10. Bg5 h6 11. Bh4 O-O) 10. Bxc6+ {[%emt 0:06:44]} bxc6 {[%emt 0:00:07]} 11. Bg5 {[%emt 0:01:05]} Be7 {[%emt 0:00:24] [#]} 12. Bxf6 $146 {[%emt 0:06:08]} (12. Na4 $11) ({Predecessor:} 12. Na4 Ne4 13. Bxe7 Qxe7 14. Qe3 Rb8 15. b3 Qf6 16. f3 Nd6 17. Qc3 O-O 18. Nc5 {1-0 (33) Solmaz,E (1078)-Yurdun,F (1225) Konya 2017}) 12... Bxf6 $15 {[%emt 0:00:05]} 13. Ne2 {[%emt 0:00:35]} Qb6 {[%emt 0:03:54][%csl LRb2,LRd4]} 14. Qb3 {[%emt 0:05:41] Black continues to play with concentration.} Bxd4 {[%emt 0:05:16]} 15. Nxd4 {[%emt 0:00:50]} Qxd4 {[%emt 0:00:05]} 16. Qb7 {[%emt 0:00:41]} O-O {[%emt 0:00:21]} 17. Rfd1 {[%emt 0:25:54]} (17. c3 $17 Qc5 18. Qc7) 17... Qc5 $19 {[%emt 0:01:06] aiming for ...Rfb8.} 18. b3 {[%emt 0:03:43]} Ra7 {[%emt 0:02:09][%cal Ba8a7,Ba7b7,Bb7b5][%mdl 32]} ({And not} 18... Qxc2 19. Rdc1 Qb2 20. Qxc6 $17) 19. b4 {[%emt 0:01:58]} Rxb7 {[%emt 0:00:13]} 20. bxc5 {[%emt 0:00:07][%mdl 4096] Endgame KRR-KRR} Rb5 {[%emt 0:00:10]} 21. Rab1 {[%emt 0:01:41]} Rxc5 {[%emt 0:08:02]} 22. Rb2 {[%emt 0:01:36]} Rb5 {[%emt 0:00:10]} 23. Rb3 {[%emt 0:00:36]} Rfb8 {[%emt 0:00:34]} 24. f3 {[%emt 0:02:50]} Kf8 {[%emt 0:00:07]} 25. Kf2 {[%emt 0:00:55]} c5 {[%emt 0:00:22][%cal Bc6c5,Bc5c4,Bc4b3,Bb3b2][%mdl 32]} 26. Rc3 {[%emt 0:01:34]} c4 {[%emt 0:00:17]} 27. Rd4 $2 {[%emt 0:00:36] [#]} (27. Ra3) 27... Rb2 {[%emt 0:00:31]} 28. a3 {[%emt 0:02:16]} R8b3 {[%emt 0:00:25]} 29. Rxb3 {[%emt 0:03:33]} cxb3 {[%emt 0:00:06]} 30. Ke1 {[%emt 0:04:52]} Rxc2 {[%emt 0:00:31] [#] ( -> ...b2)} 31. Rd2 {[%emt 0:01:34]} Ra2 {[%emt 0:00:18]} 32. Kd1 {[%emt 0:00:51]} b2 {[%emt 0:00:12] Weighted Error Value: White=0.74/Black=0.02 (flawless)} 0-1

[Event "44th Chess Olympiad Women 2022"]
[Site "Chennai"]
[Date "2022.07.29"]
[Round "1.17"]
[White "Lanchava, Tea"]
[Black "Watson, Gabriella"]
[Result "1-0"]
[ECO "A12"]
[WhiteElo "2257"]
[BlackElo "1164"]
[Annotator "TA"]
[PlyCount "87"]
[EventDate "2022.07.29"]
[EventType "team-tourn"]
[EventCountry "IND"]
[SourceTitle "playchess.com"]
[Source "ChessBase"]
[SourceQuality "1"]
[WhiteTeam "Netherlands"]
[BlackTeam "Jamaica"]
[WhiteTeamCountry "NED"]
[BlackTeamCountry "JAM"]
[TimeControl "40/5400+30:1800+30"]

{[%evp 13,87,0,24,23,35,0,0,-19,27,13,40,32,47,39,58,64,72,56,52,60,56,36,106,87,104,104,110,112,104,95,112,62,125,118,129,75,137,118,177,173,160,146,147,158,190,116,131,56,102,51,1280,237,354,354,940,925,907,904,1225,1202,1181,1194,1167,1123,1104,1102,1084,1070,1620,1725,1459,1222,1182,1164,1066,981]} 1. c4 {[%emt 0:00:07] Atalik,S} c6 {[%emt 0:00:14]} 2. Nf3 {[%emt 0:00:41]} d5 {[%emt 0:00:32]} 3. e3 {[%emt 0:00:27]} Nf6 {[%emt 0:01:18]} 4. b3 {[%emt 0:00:28]} Bf5 {[%emt 0:02:19]} 5. Be2 {[%emt 0:10:44]} e6 {[%emt 0:05:18]} 6. O-O {[%emt 0:00:16]} Bd6 {[%emt 0:05:12]} 7. Bb2 {[%emt 0:08:53]} Nbd7 {[%emt 0:06:00]} 8. Nh4 {[%emt 0:08:28] A12: English Opening: 1...c6 with b3 by White.} Bg6 {[%emt 0:06:55]} 9. Nxg6 {[%emt 0:00:25]} hxg6 {[%emt 0:00:20] [#]} 10. g3 $146 {[%emt 0:00:27] The position is equal.} ({Predecessor:} 10. h3 g5 11. d3 Qe7 12. Nd2 Ne5 13. cxd5 exd5 14. e4 dxe4 15. Nxe4 Nxe4 16. dxe4 {0-1 (32) Sharafiev,A (2449)-Atalik,S (2600) Kazan 2013 EXT 2014 [Atalik,S]}) 10... O-O {[%emt 0:16:18]} (10... g5 $142) 11. d3 {[%emt 0:02:38]} Qb6 {[%emt 0:07:28]} 12. Nd2 {[%emt 0:01:08]} Rac8 {[%emt 0:02:48]} 13. Rc1 {[%emt 0:09:24]} a5 {[%emt 0:08:52]} 14. d4 {[%emt 0:04:18] Strongly threatening c5.} c5 {[%emt 0:04:33]} 15. a3 {[%emt 0:04:19]} Qd8 {[%emt 0:12:41]} 16. Bf3 {[%emt 0:01:27]} Qe7 {[%emt 0:04:18]} 17. Nb1 {[%emt 0:00:14]} Nb6 {[%emt 0:01:36]} (17... b6 $14) 18. cxd5 $16 {[%emt 0:02:08]} exd5 {[%emt 0:01:42]} 19. Qd2 {[%emt 0:01:05]} Ra8 {[%emt 0:02:26]} 20. dxc5 {[%emt 0:00:18]} Bxc5 {[%emt 0:01:25]} 21. a4 {[%emt 0:00:22]} Rfd8 {[%emt 0:01:32]} 22. Qd3 {[%emt 0:00:34]} (22. Qe2 $16) 22... Bb4 {[%emt 0:03:04] [#]} (22... Nbd7 $1 $14) 23. Nc3 $1 {[%emt 0:02:31]} Rac8 {[%emt 0:00:50]} 24. Nb5 {[%emt 0:00:51]} ({White should try} 24. Rfd1) 24... Qe6 {[%emt 0:01:20]} (24... Rxc1 $142 25. Rxc1 Nbd7) 25. Bg2 {[%emt 0:01:11]} Ne4 {[%emt 0:01:43]} (25... Qe7 $16 {is a better defense.} 26. Qd4 Rc5) 26. Qd4 {[%emt 0:02:31][%csl Gb2][%cal Rd4g7]} Nf6 {[%emt 0:00:20]} 27. g4 {[%emt 0:02:44][%cal Bg3g4,Bg4g5][%mdl 32] Threatens to win with g5.} g5 {[%emt 0:00:35]} 28. h3 {[%emt 0:02:02]} Kf8 {[%emt 0:00:20]} 29. f4 {[%emt 0:01:38]} (29. h4 $18) 29... gxf4 {[%emt 0:01:16] [#]} 30. exf4 {[%emt 0:00:09]} ({Don't do} 30. Qxf4 $6 Bd2 31. Rxc8 (31. Ba3+ Kg8 $15) 31... Qxe3+ 32. Kh1 Nxc8 33. Bxf6 Qxf4 $14) ({White should play} 30. Rxc8 $1 $16 Rxc8 31. Qxf4) 30... Nbd7 {[%emt 0:00:38]} (30... Rxc1 $1 $14 {might be stronger.} 31. Rxc1 Rc8 32. Rxc8+ Nxc8) 31. g5 {[%emt 0:00:27] White is more active.} Ng8 {[%emt 0:00:47][%mdl 8192] Black cannot hold the game after this.} (31... Rxc1 $14 32. Rxc1 Nh5) 32. Bxd5 $2 {[%emt 0:03:55]} (32. Qxg7+ Ke7 33. f5 Qe3+ 34. Kh1 Rxc1 35. f6+ Ke6 36. Bxc1) 32... Qg6 {[%emt 0:00:44]} (32... Qb6 $142 33. Rxc8 Rxc8) 33. Be4 $18 {[%emt 0:00:12] A strong pair of Bishops.} (33. Bxb7 Bc5 34. Bxc8 Bxd4+ 35. Bxd4 Ne7 $16) 33... f5 $2 {[%emt 0:00:50]} (33... Qb6 34. Qxb6 Nxb6) 34. Rxc8 {[%emt 0:00:15] White is clearly winning.} Rxc8 {[%emt 0:00:14]} 35. Qxd7 {[%emt 0:00:16]} Re8 {[%emt 0:00:27]} 36. Bxf5 {[%emt 0:00:39]} Qf7 {[%emt 0:00:12]} 37. Qxf7+ {[%emt 0:00:40]} Kxf7 {[%emt 0:00:09]} 38. g6+ {[%emt 0:00:54]} Kf8 {[%emt 0:00:29]} 39. Be5 {[%emt 0:01:17]} Ne7 {[%emt 0:00:38]} 40. Be4 {[%emt 0:00:32]} Nc6 {[%emt 0:00:30]} 41. Bxc6 {[%emt 0:30:28]} bxc6 {[%emt 0:30:12]} 42. Nd4 {[%emt 0:00:38]} Bc5 {[%emt 0:00:27]} 43. Kh2 {[%emt 0:00:09]} Kg8 {[%emt 0:01:30]} 44. Nxc6 {[%emt 0:00:37] Weighted Error Value: White=0.45/Black=0.30} 1-0

[Event "44th Chess Olympiad Women 2022"]
[Site "Chennai"]
[Date "2022.07.29"]
[Round "1.17"]
[White "Curwin, Nickaylah"]
[Black "Ratsma, Rosa"]
[Result "0-1"]
[ECO "D02"]
[WhiteElo "1499"]
[BlackElo "2226"]
[Annotator "TA"]
[PlyCount "107"]
[EventDate "2022.07.29"]
[EventType "team-tourn"]
[EventCountry "IND"]
[SourceTitle "playchess.com"]
[Source "ChessBase"]
[SourceQuality "1"]
[WhiteTeam "Jamaica"]
[BlackTeam "Netherlands"]
[WhiteTeamCountry "JAM"]
[BlackTeamCountry "NED"]
[TimeControl "40/5400+30:1800+30"]

{[%evp 15,107,0,-4,-21,-21,-74,-55,-79,-87,-76,-97,-96,-93,-168,-180,-183,-182,-186,-179,-179,-175,-178,-172,-172,-177,-175,-166,-186,-139,-225,-225,-274,-273,-251,-252,-316,-272,-268,-147,-313,-303,-383,-404,-404,-364,-454,-442,-416,-395,-436,-396,-459,-456,-445,-451,-493,-475,-487,-475,-521,-341,-800,-851,-844,-827,-825,-803,-837,-797,-979,-772,-729,-766,-754,-742,-790,-753,-29970,-29964,-29979,-5043,-29979,-29979,-29979,-29980,-29980,-29981,-29981,-29982,-29982,-29983,-29983,-29984,-29988]} 1. d4 {[%emt 0:00:04]} Nf6 {[%emt 0:00:09]} 2. Bf4 {[%emt 0:00:06]} d5 {[%emt 0:00:17]} 3. Nf3 {[%emt 0:00:31]} e6 {[%emt 0:00:29]} 4. e3 {[%emt 0:00:23]} Bd6 {[%emt 0:00:26]} 5. Bg3 {[%emt 0:00:23]} O-O {[%emt 0:00:30]} 6. Bd3 {[%emt 0:00:58]} c5 {[%emt 0:00:47]} 7. c3 {[%emt 0:00:42]} Qc7 $1 {[%emt 0:00:53][%mdl 4] outshines the older 7...Nc6.} 8. Nbd2 {[%emt 0:01:08]} Nbd7 {[%emt 0:01:05]} 9. Qe2 {[%emt 0:00:43] D02: 1 d4 d5 2 Nf3 sidelines, including 2...Nf6 3 g3 and 2...Nf6 3 Bf4.} Re8 {[%emt 0:07:49]} 10. e4 {[%emt 0:08:20] [#]} (10. Bxd6 $11 Qxd6 11. h3) 10... e5 $146 {[%emt 0:06:36]} ({Predecessor:} 10... Bxg3 11. hxg3 e5 12. dxe5 Nxe5 13. Nxe5 Qxe5 14. O-O-O Bd7 15. f4 Qc7 16. e5 Bg4 {1-0 (38) Zeuner,O (1906)-Fenski,M (1719) Playchess.com INT 2020}) 11. O-O {[%emt 0:04:52] Black is slightly better.} exd4 {[%emt 0:11:09]} 12. cxd4 {[%emt 0:01:04]} Bxg3 {[%emt 0:04:24]} 13. hxg3 {[%emt 0:01:05]} dxe4 {[%emt 0:04:09]} 14. Nxe4 {[%emt 0:02:50]} (14. Bxe4 $17 {keeps fighting.} c4 15. Nh4) 14... Nxe4 $19 {[%emt 0:01:46]} 15. Bxe4 {[%emt 0:00:45]} Nf6 {[%emt 0:00:29]} 16. Nd2 {[%emt 0:09:07]} Bf5 $36 {[%emt 0:02:42][%mdl 2048] White is under strong pressure.} 17. f3 {[%emt 0:07:40]} cxd4 {[%emt 0:03:58]} 18. Qd3 {[%emt 0:06:00]} Nxe4 {[%emt 0:08:52]} 19. fxe4 {[%emt 0:00:49]} Bg6 {[%emt 0:01:12]} 20. Rac1 {[%emt 0:06:40]} Qb6 {[%emt 0:04:19]} 21. b3 {[%emt 0:04:00]} Rac8 {[%emt 0:03:13]} (21... Rad8 $19 22. Rf4 Qa5) 22. Nc4 {[%emt 0:04:16]} (22. Rxc8 $17 Rxc8 23. Nf3) 22... Qc5 {[%emt 0:02:18]} 23. Rce1 {[%emt 0:04:20]} b5 {[%emt 0:02:19]} 24. Nd2 {[%emt 0:00:51]} Qc2 {[%emt 0:05:38] Prevents Rc1.} 25. Qe2 {[%emt 0:11:32]} a6 {[%emt 0:10:52]} 26. Qf2 {[%emt 0:06:36]} Qd3 {[%emt 0:02:45]} ({Don't go for} 26... Qxa2 $2 27. Ra1 Qb2 28. Rxa6 $19) ({Black should play} 26... d3 $19 {...f6 is the strong threat.} 27. Qe3 Red8) 27. Qf4 $2 {[%emt 0:07:25]} (27. Nf3 $17) 27... Rc2 {[%emt 0:01:49][%csl LRa2,LRd2]} 28. Rf2 {[%emt 0:00:12]} Rxa2 {[%emt 0:02:12]} 29. e5 {[%emt 0:00:13]} h6 {[%emt 0:02:28]} 30. Nf3 {[%emt 0:04:09]} Rxf2 {[%emt 0:00:45]} 31. Kxf2 {[%emt 0:00:02]} Qxb3 {[%emt 0:01:27]} 32. Qxd4 {[%emt 0:01:59]} Rc8 {[%emt 0:01:54]} 33. Qd7 {[%emt 0:01:01]} Qc2+ {[%emt 0:01:17]} 34. Re2 {[%emt 0:01:45]} Qc5+ {[%emt 0:01:17]} 35. Nd4 {[%emt 0:01:47]} Bd3 {[%emt 0:02:46]} 36. Re3 {[%emt 0:01:22]} Bc4 {[%emt 0:00:43]} 37. Nf5 {[%emt 0:00:59]} Rf8 {[%emt 0:01:49]} 38. Nxh6+ $2 {[%emt 0:01:36]} (38. Qd6 Qa7 39. Kg1) 38... gxh6 {[%emt 0:00:55]} 39. Qg4+ {[%emt 0:00:18]} Kh8 {[%emt 0:00:32] [#] Hoping for ...Rd8.} 40. Qf4 {[%emt 0:00:42]} Qb6 {[%emt 0:00:56]} 41. e6 {[%emt 0:30:25]} Qc5 {[%emt 0:09:49]} 42. Qxh6+ {[%emt 0:00:00]} Kg8 {[%emt 0:00:07] And now ...Re8 would win.} 43. e7 {[%emt 0:00:00]} Re8 {[%emt 0:02:33]} 44. Qf6 {[%emt 0:00:00]} Bd3 {[%emt 0:05:09] Strongly threatening ...b4.} 45. g4 {[%emt 0:00:00]} Be4 {[%emt 0:01:27]} 46. Qxa6 {[%emt 0:00:00]} Rxe7 {[%emt 0:01:08]} 47. Qf6 {[%emt 0:00:00]} Re6 {[%emt 0:01:33]} (47... b4 $142 48. g5 b3 49. g4 Ra7 50. Qf4 Ra2+ 51. Kg3 b2 52. g6 Bxg6 53. Qh6 Qd6+ 54. Kf3 {[#]} Be4+ $1 {[%mdl 512]} 55. Rxe4 Qxh6 56. Rb4 Qf6+ 57. Ke3 Qe5+ 58. Re4 Ra3+ 59. Kf2 Qh2+ 60. Kf1 b1=Q+ 61. Re1 Rf3#) 48. Qf4 {[%emt 0:00:00]} Bg6 {[%emt 0:01:20] Black mates.} 49. Kf3 {[%emt 0:00:00]} Qxe3+ {[%emt 0:00:17]} 50. Qxe3 {[%emt 0:00:00]} Rxe3+ {[%emt 0:00:05]} 51. Kxe3 {[%emt 0:00:00]} b4 {[%emt 0:00:28][%cal Bb5b4,Bb4b3][%mdl 32]} 52. Kd4 {[%emt 0:00:00]} b3 {[%emt 0:00:13]} 53. Kc3 {[%emt 0:00:00]} Bc2 {[%emt 0:00:08]} 54. Kd4 {[%emt 0:00:31] White did not feel at home in the position after the opening.  Weighted Error Value: White=0.54/Black=0.15 (very precise)} 0-1